[Event "*** Titled Tuesday Blitz"]
[Site "Chess.com"]
[Date "2018.06.05"]
[Round "7"]
[White "TheCount"]
[Black "gkchesstiger"]
[Result "0-1"]
[WhiteElo "2542"]
[BlackElo "2787"]
[TimeControl "180+2"]
[EndTime "14:39:33 PDT"]
[Termination "gkchesstiger won by resignation"]

1. b3 {[%clk 0:03:01.3]} 1... Nf6 {[%clk 0:02:58.2]} 2. Bb2 {[%clk 0:03:02.4]}
2... g6 {[%clk 0:02:58.8]} 3. Nf3 {[%clk 0:03:03.3]} 3... Bg7 {[%clk 0:03:00]}
4. g3 {[%clk 0:03:04.9]} 4... O-O {[%clk 0:03:01]} 5. Bg2 {[%clk 0:03:06.3]}
5... d5 {[%clk 0:03:02.1]} 6. O-O {[%clk 0:03:06.9]} 6... c5 {[%clk 0:03:03.2]}
7. e3 {[%clk 0:03:05.5]} 7... Nc6 {[%clk 0:03:03.5]} 8. c4 {[%clk 0:03:06.2]}
8... d4 {[%clk 0:03:04.1]} 9. exd4 {[%clk 0:03:06.8]} 9... Ng4 {[%clk
0:03:02.6]} 10. h3 {[%clk 0:02:33.1]} 10... Nxd4 {[%clk 0:03:02.6]} 11. Bxd4
{[%clk 0:01:39.9]} 11... Bxd4 {[%clk 0:03:02.3]} 12. Nc3 {[%clk 0:01:34.5]}
12... Nf6 {[%clk 0:02:38.3]} 13. Qe2 {[%clk 0:01:25]} 13... Bxc3 {[%clk
0:02:20.7]} 14. dxc3 {[%clk 0:01:25.9]} 14... Qc7 {[%clk 0:02:21.8]} 15. Rfe1
{[%clk 0:01:19.2]} 15... Re8 {[%clk 0:02:22.1]} 16. Rad1 {[%clk 0:01:10]} 16...
Bd7 {[%clk 0:02:22.8]} 17. Ne5 {[%clk 0:01:10.4]} 17... Rad8 {[%clk 0:02:20.8]}
18. Qf3 {[%clk 0:00:27]} 18... Bc8 {[%clk 0:02:18.1]} 19. Qe3 {[%clk 0:00:22.6]}
19... Kg7 {[%clk 0:02:13.8]} 20. Nd3 {[%clk 0:00:18.9]} 20... b6 {[%clk
0:02:12.9]} 21. Nf4 {[%clk 0:00:19.9]} 21... e6 {[%clk 0:02:07.5]} 22. h4 {[%clk
0:00:21]} 22... h6 {[%clk 0:02:07.5]} 23. h5 {[%clk 0:00:21.3]} 23... g5 {[%clk
0:02:07.6]} 24. Nh3 {[%clk 0:00:21.3]} 24... Rxd1 {[%clk 0:02:05.3]} 25. Rxd1
{[%clk 0:00:23.2]} 25... Rd8 {[%clk 0:02:04.9]} 26. Re1 {[%clk 0:00:23.5]} 26...
Ng4 {[%clk 0:01:46]} 27. Qf3 {[%clk 0:00:21.6]} 27... f5 {[%clk 0:01:40.1]} 28.
Qe2 {[%clk 0:00:22.9]} 28... Qd6 {[%clk 0:01:38.2]} 29. f4 {[%clk 0:00:23.1]}
29... Qd3 {[%clk 0:01:35.3]} 30. fxg5 {[%clk 0:00:23.6]} 30... Qxg3 {[%clk
0:01:33.8]} 31. gxh6+ {[%clk 0:00:24.7]} 31... Kxh6 {[%clk 0:01:33.6]} 32. Qf3
{[%clk 0:00:15.6]} 32... Qxe1+ {[%clk 0:01:33.7]} 0-1

[Event "*** Titled Tuesday Blitz"]
[Site "Chess.com"]
[Date "2018.06.05"]
[Round "7"]
[White "Hrant_ChessMood"]
[Black "lionheart95"]
[Result "1-0"]
[WhiteElo "2917"]
[BlackElo "2391"]
[TimeControl "180+2"]
[EndTime "14:39:36 PDT"]
[Termination "Hrant_ChessMood won by resignation"]

1. e4 {[%clk 0:03:01.9]} 1... e5 {[%clk 0:03:00.3]} 2. Nf3 {[%clk 0:03:01.2]}
2... Nc6 {[%clk 0:03:01.4]} 3. Bb5 {[%clk 0:03:01.3]} 3... g6 {[%clk 0:03:01.4]}
4. d4 {[%clk 0:03:00.7]} 4... exd4 {[%clk 0:03:01.5]} 5. Bg5 {[%clk 0:03:01.4]}
5... Be7 {[%clk 0:03:02]} 6. Bxe7 {[%clk 0:03:01.4]} 6... Qxe7 {[%clk
0:03:03.9]} 7. Bxc6 {[%clk 0:03:02]} 7... dxc6 {[%clk 0:03:05.7]} 8. Qxd4 {[%clk
0:03:03.5]} 8... Nf6 {[%clk 0:03:04.6]} 9. Nc3 {[%clk 0:03:04.8]} 9... Bg4
{[%clk 0:03:03.3]} 10. Nd2 {[%clk 0:03:05.6]} 10... c5 {[%clk 0:03:04.1]} 11.
Qe3 {[%clk 0:03:05.5]} 11... O-O-O {[%clk 0:03:04.9]} 12. f3 {[%clk 0:03:06.1]}
12... Bd7 {[%clk 0:03:05.6]} 13. O-O-O {[%clk 0:03:06.6]} 13... Bc6 {[%clk
0:03:06.4]} 14. g4 {[%clk 0:02:55.2]} 14... b6 {[%clk 0:02:58.7]} 15. h4 {[%clk
0:02:54.6]} 15... Rd4 {[%clk 0:02:58.3]} 16. Nb3 {[%clk 0:02:53.3]} 16... Rxd1+
{[%clk 0:02:58]} 17. Rxd1 {[%clk 0:02:55.2]} 17... Rd8 {[%clk 0:02:58.8]} 18.
Rxd8+ {[%clk 0:02:50.8]} 18... Qxd8 {[%clk 0:02:59.7]} 19. Ne2 {[%clk
0:02:48.3]} 19... h5 {[%clk 0:02:59.9]} 20. g5 {[%clk 0:02:47.8]} 20... Nd7
{[%clk 0:02:52.2]} 21. Nd2 {[%clk 0:02:48.3]} 21... Qe7 {[%clk 0:02:52.5]} 22.
Qf4 {[%clk 0:02:40.5]} 22... Ne5 {[%clk 0:02:50.3]} 23. Nc3 {[%clk 0:02:30.7]}
23... Qd6 {[%clk 0:02:50.6]} 24. Qe3 {[%clk 0:02:28.3]} 24... a5 {[%clk
0:02:49.3]} 25. a3 {[%clk 0:02:24.6]} 25... a4 {[%clk 0:02:49.5]} 26. Ne2 {[%clk
0:02:07.1]} 26... Kb7 {[%clk 0:02:41.4]} 27. Nf4 {[%clk 0:02:06.5]} 27... Qd4
{[%clk 0:02:34.8]} 28. Qxd4 {[%clk 0:02:01.9]} 28... cxd4 {[%clk 0:02:36.6]} 29.
Ne2 {[%clk 0:01:48.3]} 29... d3 {[%clk 0:02:37.7]} 30. Nc3 {[%clk 0:01:49.8]}
30... dxc2 {[%clk 0:02:35.7]} 31. Kxc2 {[%clk 0:01:51.7]} 31... b5 {[%clk
0:02:10.2]} 32. f4 {[%clk 0:01:41.6]} 32... Ng4 {[%clk 0:02:08.8]} 33. Kd3
{[%clk 0:01:41.2]} 33... Kb6 {[%clk 0:02:09.7]} 34. f5 {[%clk 0:01:33.1]} 34...
Kc5 {[%clk 0:02:09.5]} 35. b4+ {[%clk 0:01:26.2]} 35... axb3 {[%clk 0:02:04.6]}
36. Nxb3+ {[%clk 0:01:26.9]} 36... Kd6 {[%clk 0:02:05.4]} 37. Nd4 {[%clk
0:01:25.2]} 37... Ne5+ {[%clk 0:02:06.2]} 38. Ke3 {[%clk 0:01:21.4]} 38... Nc4+
{[%clk 0:02:06.5]} 39. Kf4 {[%clk 0:01:22.8]} 39... Nxa3 {[%clk 0:02:07.3]} 40.
e5+ {[%clk 0:01:23.6]} 40... Kc5 {[%clk 0:02:04.8]} 41. Nxc6 {[%clk 0:01:24.6]}
41... Kxc6 {[%clk 0:02:05.2]} 42. e6 {[%clk 0:01:25.2]} 42... Kd6 {[%clk
0:02:00.4]} 43. exf7 {[%clk 0:01:20.7]} 43... Ke7 {[%clk 0:02:01.4]} 44. fxg6
{[%clk 0:01:22.1]} 44... c6 {[%clk 0:01:57.5]} 45. Ne4 {[%clk 0:01:18.2]} 45...
Nc4 {[%clk 0:01:44.2]} 46. Nf6 {[%clk 0:01:14.1]} 46... Nd6 {[%clk 0:01:43.5]}
47. g7 {[%clk 0:01:09.4]} 1-0

[Event "*** Titled Tuesday Blitz"]
[Site "Chess.com"]
[Date "2018.06.05"]
[Round "7"]
[White "HanSchut"]
[Black "LornerAcosta"]
[Result "1-0"]
[WhiteElo "2264"]
[BlackElo "2297"]
[TimeControl "180+2"]
[EndTime "14:39:47 PDT"]
[Termination "HanSchut won by checkmate"]

1. e4 {[%clk 0:03:01.9]} 1... c5 {[%clk 0:03:00.1]} 2. Nf3 {[%clk 0:03:02]} 2...
Nc6 {[%clk 0:03:00.3]} 3. d4 {[%clk 0:03:02.6]} 3... cxd4 {[%clk 0:03:01.3]} 4.
Nxd4 {[%clk 0:03:04.5]} 4... Nf6 {[%clk 0:03:02.7]} 5. Nc3 {[%clk 0:03:05.1]}
5... e6 {[%clk 0:03:03.5]} 6. Ndb5 {[%clk 0:03:03.4]} 6... Bb4 {[%clk
0:03:03.9]} 7. a3 {[%clk 0:03:04]} 7... Bxc3+ {[%clk 0:03:04.9]} 8. Nxc3 {[%clk
0:03:05.9]} 8... d5 {[%clk 0:03:06.7]} 9. exd5 {[%clk 0:03:07.5]} 9... exd5
{[%clk 0:03:08.6]} 10. Bd3 {[%clk 0:03:08.5]} 10... O-O {[%clk 0:03:09.7]} 11.
O-O {[%clk 0:03:07.8]} 11... d4 {[%clk 0:03:10.3]} 12. Ne2 {[%clk 0:03:08.8]}
12... Bg4 {[%clk 0:03:11]} 13. f3 {[%clk 0:03:08.5]} 13... Bh5 {[%clk
0:03:12.3]} 14. b4 {[%clk 0:03:07.8]} 14... a6 {[%clk 0:03:12.8]} 15. Bb2 {[%clk
0:03:04.3]} 15... Qd6 {[%clk 0:03:10.9]} 16. Kh1 {[%clk 0:02:49.6]} 16... Rad8
{[%clk 0:03:10.1]} 17. Qd2 {[%clk 0:02:49.3]} 17... Rfe8 {[%clk 0:03:07.9]} 18.
Rad1 {[%clk 0:02:40.9]} 18... b5 {[%clk 0:03:00.9]} 19. Ng3 {[%clk 0:02:11.4]}
19... Bg6 {[%clk 0:02:41.7]} 20. Rfe1 {[%clk 0:02:09]} 20... Nd5 {[%clk
0:02:32.7]} 21. Bxg6 {[%clk 0:01:46.6]} 21... Rxe1+ {[%clk 0:02:31.2]} 22. Qxe1
{[%clk 0:01:43.5]} 22... Qxg6 {[%clk 0:02:25.2]} 23. Bxd4 {[%clk 0:01:37.7]}
23... Qxc2 {[%clk 0:02:18.6]} 24. Ba1 {[%clk 0:01:12.9]} 24... h6 {[%clk
0:02:15.4]} 25. Nh5 {[%clk 0:00:55.2]} 25... f6 {[%clk 0:01:13.1]} 26. Rxd5
{[%clk 0:00:39.8]} 26... Rxd5 {[%clk 0:01:10.3]} 27. Qe8+ {[%clk 0:00:39.4]}
27... Kh7 {[%clk 0:01:05.6]} 28. Nxf6+ {[%clk 0:00:40.4]} 28... gxf6 {[%clk
0:00:46.2]} 29. Qf7+ {[%clk 0:00:39.7]} 29... Kh8 {[%clk 0:00:46.5]} 30. Bxf6#
{[%clk 0:00:37.5]} 1-0

[Event "*** Titled Tuesday Blitz"]
[Site "Chess.com"]
[Date "2018.06.05"]
[Round "7"]
[White "BasilSmash"]
[Black "jacky72"]
[Result "0-1"]
[WhiteElo "2408"]
[BlackElo "2637"]
[TimeControl "180+2"]
[EndTime "14:39:47 PDT"]
[Termination "jacky72 won by resignation"]

1. d4 {[%clk 0:03:01.9]} 1... d5 {[%clk 0:02:59.4]} 2. Bf4 {[%clk 0:03:00.8]}
2... Nf6 {[%clk 0:02:59.7]} 3. e3 {[%clk 0:03:00.8]} 3... Bf5 {[%clk 0:02:59.6]}
4. c4 {[%clk 0:03:01.3]} 4... e6 {[%clk 0:02:59]} 5. Nc3 {[%clk 0:03:01.5]} 5...
c6 {[%clk 0:03:00.1]} 6. Nf3 {[%clk 0:03:01.8]} 6... Bd6 {[%clk 0:03:01.2]} 7.
Bg3 {[%clk 0:03:01.8]} 7... Bxg3 {[%clk 0:03:01.7]} 8. hxg3 {[%clk 0:03:00.7]}
8... h6 {[%clk 0:03:03.6]} 9. Bd3 {[%clk 0:02:53.8]} 9... Bxd3 {[%clk
0:03:04.2]} 10. Qxd3 {[%clk 0:02:55.7]} 10... Nbd7 {[%clk 0:03:05.4]} 11. O-O
{[%clk 0:02:44.2]} 11... O-O {[%clk 0:03:05.8]} 12. Rfe1 {[%clk 0:02:37.4]}
12... Rc8 {[%clk 0:03:00.3]} 13. Rad1 {[%clk 0:02:34.3]} 13... dxc4 {[%clk
0:02:58.6]} 14. Qxc4 {[%clk 0:02:34.2]} 14... Qa5 {[%clk 0:02:58.9]} 15. b4
{[%clk 0:02:32.4]} 15... Nb6 {[%clk 0:02:55.5]} 16. Qb3 {[%clk 0:02:28.3]} 16...
Qh5 {[%clk 0:02:56.1]} 17. e4 {[%clk 0:02:24.3]} 17... Ng4 {[%clk 0:02:56.7]}
18. a4 {[%clk 0:02:21.3]} 18... Rcd8 {[%clk 0:02:56.6]} 19. Ne2 {[%clk
0:02:18.2]} 19... e5 {[%clk 0:02:54.8]} 20. dxe5 {[%clk 0:02:09.5]} 20... Nxe5
{[%clk 0:02:55.4]} 21. a5 {[%clk 0:02:09.1]} 21... Nxf3+ {[%clk 0:02:55.9]} 22.
gxf3 {[%clk 0:02:06.8]} 22... Nd7 {[%clk 0:02:53.6]} 23. Kg2 {[%clk 0:02:07.3]}
23... Nf6 {[%clk 0:02:52.9]} 24. Qc3 {[%clk 0:02:00.6]} 24... Rxd1 {[%clk
0:02:49.2]} 25. Rxd1 {[%clk 0:02:01]} 25... Nxe4 {[%clk 0:02:50.6]} 26. Qd4
{[%clk 0:01:52.1]} 26... Ng5 {[%clk 0:02:48.3]} 27. Qg4 {[%clk 0:01:40]} 27...
Qxg4 {[%clk 0:02:47.3]} 28. fxg4 {[%clk 0:01:41.9]} 28... Re8 {[%clk 0:02:48.3]}
29. Nc3 {[%clk 0:01:39.3]} 29... Ne4 {[%clk 0:02:37.4]} 30. Na4 {[%clk
0:01:17.9]} 30... Nf6 {[%clk 0:02:37.8]} 31. Nc5 {[%clk 0:01:15.4]} 31... b6
{[%clk 0:02:37.5]} 32. axb6 {[%clk 0:01:15]} 32... axb6 {[%clk 0:02:39.4]} 33.
Nd7 {[%clk 0:01:15.9]} 33... Nxd7 {[%clk 0:02:31.6]} 34. Rxd7 {[%clk 0:01:17.8]}
34... Re4 {[%clk 0:02:33.5]} 35. Rd6 {[%clk 0:00:53.5]} 35... Rxg4 {[%clk
0:02:33.9]} 36. f4 {[%clk 0:00:52.8]} 36... Rg6 {[%clk 0:02:32.9]} 37. Rd8+
{[%clk 0:00:52.1]} 37... Kh7 {[%clk 0:02:30.5]} 38. Rd7 {[%clk 0:00:54]} 38...
Rf6 {[%clk 0:02:31.8]} 39. Rb7 {[%clk 0:00:52.8]} 39... b5 {[%clk 0:02:30.1]}
40. Kf3 {[%clk 0:00:53.7]} 40... g5 {[%clk 0:02:30.8]} 41. Ke4 {[%clk
0:00:47.7]} 41... gxf4 {[%clk 0:02:31.5]} 42. gxf4 {[%clk 0:00:49.6]} 42... Kg7
{[%clk 0:02:31.1]} 43. Rc7 {[%clk 0:00:43.9]} 43... h5 {[%clk 0:02:31.9]} 44. f5
{[%clk 0:00:42]} 44... h4 {[%clk 0:02:29.7]} 45. Kf4 {[%clk 0:00:42.7]} 45...
Rh6 {[%clk 0:02:30.5]} 46. Rd7 {[%clk 0:00:16.4]} 46... h3 {[%clk 0:02:31.1]}
47. Rd1 {[%clk 0:00:17.9]} 47... h2 {[%clk 0:02:31.9]} 48. Rh1 {[%clk
0:00:19.8]} 48... Kf6 {[%clk 0:02:33.3]} 0-1

[Event "*** Titled Tuesday Blitz"]
[Site "Chess.com"]
[Date "2018.06.05"]
[Round "7"]
[White "ChessWarrior7197"]
[Black "saikrishnaReturns"]
[Result "1-0"]
[WhiteElo "2687"]
[BlackElo "2635"]
[TimeControl "180+2"]
[EndTime "14:39:48 PDT"]
[Termination "ChessWarrior7197 won by checkmate"]

1. d4 {[%clk 0:03:01.9]} 1... Nf6 {[%clk 0:03:00.5]} 2. Bf4 {[%clk 0:03:02.3]}
2... c5 {[%clk 0:02:58.2]} 3. c3 {[%clk 0:02:59.6]} 3... g6 {[%clk 0:02:54.5]}
4. Nf3 {[%clk 0:03:00]} 4... Bg7 {[%clk 0:02:55.3]} 5. Nbd2 {[%clk 0:03:00.4]}
5... d6 {[%clk 0:02:47.9]} 6. e3 {[%clk 0:03:00.9]} 6... Nh5 {[%clk 0:02:46.2]}
7. Bg5 {[%clk 0:02:59.4]} 7... h6 {[%clk 0:02:47]} 8. Bh4 {[%clk 0:03:00.4]}
8... g5 {[%clk 0:02:48.1]} 9. Bg3 {[%clk 0:03:01.6]} 9... Nc6 {[%clk 0:02:47.5]}
10. Be2 {[%clk 0:02:58.8]} 10... O-O {[%clk 0:02:38.2]} 11. Bd3 {[%clk
0:02:53.3]} 11... f5 {[%clk 0:02:25.1]} 12. Nxg5 {[%clk 0:02:27.9]} 12... Nxg3
{[%clk 0:02:24.1]} 13. hxg3 {[%clk 0:02:29.1]} 13... hxg5 {[%clk 0:02:25.2]} 14.
Qh5 {[%clk 0:02:30.6]} 14... Rf6 {[%clk 0:01:46.3]} 15. Qh7+ {[%clk 0:02:30.2]}
15... Kf8 {[%clk 0:01:45.8]} 16. Nf3 {[%clk 0:02:11.4]} 16... Be6 {[%clk
0:01:43.4]} 17. Nxg5 {[%clk 0:02:09.5]} 17... Bg8 {[%clk 0:01:43.4]} 18. Qh3
{[%clk 0:02:05.9]} 18... c4 {[%clk 0:01:34.6]} 19. Bc2 {[%clk 0:02:01.1]} 19...
Qe8 {[%clk 0:00:59.9]} 20. O-O-O {[%clk 0:01:49.1]} 20... e6 {[%clk 0:00:45.6]}
21. g4 {[%clk 0:01:38.7]} 21... Ne7 {[%clk 0:00:31.9]} 22. gxf5 {[%clk
0:01:38.4]} 22... Nxf5 {[%clk 0:00:31.8]} 23. g4 {[%clk 0:01:38.6]} 23... Nh6
{[%clk 0:00:31.1]} 24. f4 {[%clk 0:01:39.1]} 24... Nf7 {[%clk 0:00:16.8]} 25.
Ne4 {[%clk 0:01:38.8]} 25... Rh6 {[%clk 0:00:17.4]} 26. Qf3 {[%clk 0:01:36.2]}
26... Rxh1 {[%clk 0:00:18]} 27. Rxh1 {[%clk 0:01:38.1]} 27... d5 {[%clk
0:00:19.4]} 28. Ng3 {[%clk 0:01:38.4]} 28... b5 {[%clk 0:00:20.3]} 29. Nh5
{[%clk 0:01:38.6]} 29... b4 {[%clk 0:00:21]} 30. Nxg7 {[%clk 0:01:38.7]} 30...
Kxg7 {[%clk 0:00:22.9]} 31. g5 {[%clk 0:01:37.3]} 31... bxc3 {[%clk 0:00:24.2]}
32. bxc3 {[%clk 0:01:38.2]} 32... Nd6 {[%clk 0:00:17.6]} 33. Qh3 {[%clk
0:01:35.9]} 33... Ne4 {[%clk 0:00:18.5]} 34. Bxe4 {[%clk 0:01:33.3]} 34... dxe4
{[%clk 0:00:19.3]} 35. Qh6+ {[%clk 0:01:34.1]} 35... Kf7 {[%clk 0:00:19.6]} 36.
Qf6# {[%clk 0:01:36]} 1-0

[Event "*** Titled Tuesday Blitz"]
[Site "Chess.com"]
[Date "2018.06.05"]
[Round "7"]
[White "korason34"]
[Black "JaimeSantosLatasa"]
[Result "0-1"]
[WhiteElo "2470"]
[BlackElo "2656"]
[TimeControl "180+2"]
[EndTime "14:40:05 PDT"]
[Termination "JaimeSantosLatasa won by resignation"]

1. d4 {[%clk 0:03:01.9]} 1... Nf6 {[%clk 0:02:59.6]} 2. c4 {[%clk 0:03:02.5]}
2... e6 {[%clk 0:03:00.5]} 3. Nc3 {[%clk 0:03:02.9]} 3... Bb4 {[%clk 0:03:00.8]}
4. f3 {[%clk 0:03:03.9]} 4... c5 {[%clk 0:03:00.7]} 5. d5 {[%clk 0:03:04.3]}
5... d6 {[%clk 0:03:01.9]} 6. e4 {[%clk 0:03:04.8]} 6... b5 {[%clk 0:03:03.3]}
7. Bd3 {[%clk 0:02:41.4]} 7... O-O {[%clk 0:02:39.7]} 8. Ne2 {[%clk 0:02:41.6]}
8... Nbd7 {[%clk 0:02:29.1]} 9. Be3 {[%clk 0:02:41.1]} 9... bxc4 {[%clk
0:02:24.1]} 10. Bxc4 {[%clk 0:02:41.1]} 10... Nb6 {[%clk 0:02:25]} 11. Qd3
{[%clk 0:02:27.6]} 11... Nxc4 {[%clk 0:02:21.1]} 12. Qxc4 {[%clk 0:02:28.1]}
12... exd5 {[%clk 0:02:20.8]} 13. exd5 {[%clk 0:02:28.1]} 13... a5 {[%clk
0:02:22]} 14. Rd1 {[%clk 0:02:09.5]} 14... Re8 {[%clk 0:02:16.6]} 15. Kf2 {[%clk
0:02:08]} 15... Ba6 {[%clk 0:02:11.4]} 16. Qf4 {[%clk 0:02:04.7]} 16... Re5
{[%clk 0:01:59.2]} 17. a3 {[%clk 0:01:57]} 17... Nh5 {[%clk 0:01:52.8]} 18. Qg4
{[%clk 0:01:52.3]} 18... Bxe2 {[%clk 0:01:37.6]} 19. Nxe2 {[%clk 0:01:47.1]}
19... Qe7 {[%clk 0:01:32.6]} 20. axb4 {[%clk 0:00:52.8]} 20... Rxe3 {[%clk
0:01:30.3]} 21. Nc3 {[%clk 0:00:28.7]} 21... Nf6 {[%clk 0:01:25.1]} 22. Qf4
{[%clk 0:00:27.9]} 22... Re8 {[%clk 0:01:02.1]} 23. Rhf1 {[%clk 0:00:15.3]}
23... axb4 {[%clk 0:00:58.3]} 24. Nb5 {[%clk 0:00:15.5]} 24... Re5 {[%clk
0:00:57.2]} 25. Qc4 {[%clk 0:00:15.3]} 25... Re2+ {[%clk 0:00:49.2]} 26. Kg1
{[%clk 0:00:16.1]} 26... Rxb2 {[%clk 0:00:51.1]} 27. Qf4 {[%clk 0:00:15.9]}
27... Qe2 {[%clk 0:00:47.8]} 28. Qg3 {[%clk 0:00:11.1]} 28... Qxb5 {[%clk
0:00:48.3]} 0-1

[Event "*** Titled Tuesday Blitz"]
[Site "Chess.com"]
[Date "2018.06.05"]
[Round "7"]
[White "NMJeevanK"]
[Black "Chiinaldo"]
[Result "1-0"]
[WhiteElo "2330"]
[BlackElo "2191"]
[TimeControl "180+2"]
[EndTime "14:40:09 PDT"]
[Termination "NMJeevanK won by checkmate"]

1. e4 {[%clk 0:03:01.9]} 1... c6 {[%clk 0:03:00.4]} 2. d4 {[%clk 0:03:02.7]}
2... d5 {[%clk 0:03:01.4]} 3. Nc3 {[%clk 0:03:04.3]} 3... dxe4 {[%clk
0:03:01.7]} 4. Nxe4 {[%clk 0:03:06.2]} 4... Bf5 {[%clk 0:03:02]} 5. Ng3 {[%clk
0:03:07.7]} 5... Bg6 {[%clk 0:03:03.1]} 6. Nf3 {[%clk 0:03:08.9]} 6... Nd7
{[%clk 0:03:03.4]} 7. h4 {[%clk 0:03:10.2]} 7... h6 {[%clk 0:03:04.4]} 8. h5
{[%clk 0:03:11.7]} 8... Bh7 {[%clk 0:03:05.5]} 9. Bd3 {[%clk 0:03:13.6]} 9...
Bxd3 {[%clk 0:03:06]} 10. Qxd3 {[%clk 0:03:15.5]} 10... e6 {[%clk 0:03:05.7]}
11. c3 {[%clk 0:03:17]} 11... Ngf6 {[%clk 0:03:06.2]} 12. Bd2 {[%clk 0:03:18.2]}
12... Qc7 {[%clk 0:03:06.8]} 13. Qe2 {[%clk 0:03:19.3]} 13... O-O-O {[%clk
0:03:07]} 14. O-O-O {[%clk 0:03:20.6]} 14... Bd6 {[%clk 0:03:03.9]} 15. Ne4
{[%clk 0:03:19.3]} 15... Nxe4 {[%clk 0:03:04.6]} 16. Qxe4 {[%clk 0:03:21.2]}
16... c5 {[%clk 0:03:03.3]} 17. Be3 {[%clk 0:03:17.1]} 17... Nf6 {[%clk
0:03:00.7]} 18. Qc2 {[%clk 0:03:16.4]} 18... a6 {[%clk 0:02:30.5]} 19. c4 {[%clk
0:02:48.4]} 19... Ng4 {[%clk 0:02:23.6]} 20. Kb1 {[%clk 0:02:43.9]} 20... Rhe8
{[%clk 0:01:59]} 21. d5 {[%clk 0:02:41.1]} 21... Nxe3 {[%clk 0:01:55.1]} 22.
fxe3 {[%clk 0:02:41.6]} 22... exd5 {[%clk 0:01:56.2]} 23. Rxd5 {[%clk
0:02:39.1]} 23... Rxe3 {[%clk 0:01:56.1]} 24. Rhd1 {[%clk 0:02:39.7]} 24... Ree8
{[%clk 0:01:33.3]} 25. Qd3 {[%clk 0:02:21]} 25... Bf8 {[%clk 0:00:52.6]} 26.
Qf5+ {[%clk 0:02:11.6]} 26... Kb8 {[%clk 0:00:52.2]} 27. Rd7 {[%clk 0:02:06.5]}
27... Rxd7 {[%clk 0:00:17.2]} 28. Rxd7 {[%clk 0:02:08.4]} 28... Qg3 {[%clk
0:00:16.5]} 29. Qd5 {[%clk 0:01:46.8]} 29... Re1+ {[%clk 0:00:10.3]} 30. Nxe1
{[%clk 0:01:47.6]} 30... Qxe1+ {[%clk 0:00:10.5]} 31. Kc2 {[%clk 0:01:37.2]}
31... Qe2+ {[%clk 0:00:10.7]} 32. Kb3 {[%clk 0:01:33.5]} 32... Qe3+ {[%clk
0:00:08.7]} 33. Ka4 {[%clk 0:01:21.9]} 33... b5+ {[%clk 0:00:05.1]} 34. Ka5
{[%clk 0:01:19.8]} 34... Qe1+ {[%clk 0:00:03.4]} 35. Kb6 {[%clk 0:01:20.1]}
35... Qe6+ {[%clk 0:00:02.9]} 36. Qxe6 {[%clk 0:01:20.9]} 36... fxe6 {[%clk
0:00:03.1]} 37. Rd8# {[%clk 0:01:22.8]} 1-0

[Event "*** Titled Tuesday Blitz"]
[Site "Chess.com"]
[Date "2018.06.05"]
[Round "7"]
[White "Parhamov"]
[Black "Fins0905"]
[Result "1-0"]
[WhiteElo "2824"]
[BlackElo "2599"]
[TimeControl "180+2"]
[EndTime "14:40:17 PDT"]
[Termination "Parhamov won by resignation"]

1. Nf3 {[%clk 0:03:01.9]} 1... d5 {[%clk 0:03:00.1]} 2. g3 {[%clk 0:02:56]} 2...
Bg4 {[%clk 0:03:00.3]} 3. Bg2 {[%clk 0:02:53]} 3... Nd7 {[%clk 0:03:00.2]} 4.
O-O {[%clk 0:02:53.9]} 4... c6 {[%clk 0:03:01.1]} 5. d3 {[%clk 0:02:54]} 5...
Ngf6 {[%clk 0:03:00.1]} 6. h3 {[%clk 0:02:54]} 6... Bh5 {[%clk 0:02:59.8]} 7.
Qe1 {[%clk 0:02:55.2]} 7... e5 {[%clk 0:03:00.5]} 8. e4 {[%clk 0:02:54.6]} 8...
dxe4 {[%clk 0:03:00.8]} 9. dxe4 {[%clk 0:02:55.5]} 9... Be7 {[%clk 0:03:02.3]}
10. Nh4 {[%clk 0:02:56.5]} 10... O-O {[%clk 0:02:51.1]} 11. Nd2 {[%clk
0:02:57.4]} 11... Re8 {[%clk 0:02:51.8]} 12. a4 {[%clk 0:02:56.1]} 12... b5
{[%clk 0:02:48.5]} 13. Nb3 {[%clk 0:02:56.9]} 13... Nc5 {[%clk 0:02:43.8]} 14.
Na5 {[%clk 0:02:53.5]} 14... Qc7 {[%clk 0:02:37.4]} 15. axb5 {[%clk 0:02:47.1]}
15... cxb5 {[%clk 0:02:37.5]} 16. Nf5 {[%clk 0:02:39.8]} 16... Bf8 {[%clk
0:02:29.6]} 17. Bg5 {[%clk 0:02:40.3]} 17... Nfd7 {[%clk 0:02:28.4]} 18. Be3
{[%clk 0:02:33.1]} 18... Rac8 {[%clk 0:02:20.3]} 19. f3 {[%clk 0:02:28.9]} 19...
Na4 {[%clk 0:02:10.7]} 20. b3 {[%clk 0:02:28.3]} 20... Nab6 {[%clk 0:02:00]} 21.
Rf2 {[%clk 0:02:24.6]} 21... Bc5 {[%clk 0:01:54.5]} 22. Bf1 {[%clk 0:02:23.9]}
22... a6 {[%clk 0:01:54]} 23. c4 {[%clk 0:02:15.7]} 23... b4 {[%clk 0:01:43.2]}
24. Bxc5 {[%clk 0:02:16.3]} 24... Nxc5 {[%clk 0:01:33.4]} 25. Qxb4 {[%clk
0:02:14.5]} 25... Nbd7 {[%clk 0:01:27.8]} 26. Qc3 {[%clk 0:02:08.2]} 26... Bg6
{[%clk 0:01:22.9]} 27. Ne3 {[%clk 0:02:06.9]} 27... Ne6 {[%clk 0:01:20.8]} 28.
Nd5 {[%clk 0:02:07.7]} 28... Qb8 {[%clk 0:01:15.5]} 29. b4 {[%clk 0:02:08.3]}
29... Nd4 {[%clk 0:01:13.4]} 30. c5 {[%clk 0:02:08.8]} 30... Re6 {[%clk
0:00:56]} 31. Qe3 {[%clk 0:01:59.2]} 31... Kh8 {[%clk 0:00:48.1]} 32. Nc4 {[%clk
0:02:00.2]} 32... f5 {[%clk 0:00:43.3]} 33. Nd6 {[%clk 0:01:59]} 33... Rf8
{[%clk 0:00:42.7]} 34. Rxa6 {[%clk 0:01:55.3]} 34... Nf6 {[%clk 0:00:32.9]} 35.
b5 {[%clk 0:01:55.5]} 35... Rd8 {[%clk 0:00:24.4]} 36. Rfa2 {[%clk 0:01:45.4]}
36... fxe4 {[%clk 0:00:21.6]} 37. fxe4 {[%clk 0:01:46.4]} 37... Nxe4 {[%clk
0:00:12.8]} 38. Nxe4 {[%clk 0:01:47.1]} 38... Rxa6 {[%clk 0:00:13.6]} 39. Rxa6
{[%clk 0:01:43.5]} 39... Rxd5 {[%clk 0:00:14.7]} 40. b6 {[%clk 0:01:43.2]} 40...
Rd8 {[%clk 0:00:14.3]} 41. Nd6 {[%clk 0:01:43.5]} 41... Rf8 {[%clk 0:00:13.1]}
42. Bg2 {[%clk 0:01:44.2]} 42... Nc2 {[%clk 0:00:06.3]} 43. Qxe5 {[%clk
0:01:44.6]} 43... h6 {[%clk 0:00:06.2]} 44. Ra8 {[%clk 0:01:45.6]} 1-0